{"text_format":"1","workbook":"xlsx","n_sheets":6,"sheets":["Menu principal","Calculos","tablas de factores","imagenes","DDT","Instrucciones"],"not_rendered":{"charts":0,"images":5,"macros":1,"external_links":1,"defined_names":6,"comments":0,"pivot_tables":0},"unopened":[],"bounds":{"document_bytes":16777216,"sheet_cells":100000,"rows_first":2000,"rows_last":500,"rows_between":2000,"halvings":0,"cell_chars":16384,"cell_head_chars":4096},"cells_cut":0,"cells_raw":0,"read":"whole","date_system":"1900"}

{"sheet":"Menu principal","index":0,"n_rows":122,"n_cols":11,"rows_kept":122,"cut":false,"hidden":false,"merged":[[1,0,1,10],[2,0,2,10],[3,1,3,5],[4,1,4,5],[5,1,5,5],[6,1,6,5],[13,1,13,5],[14,0,14,10],[15,0,15,10],[16,1,16,5],[17,1,17,5],[18,1,18,5],[7,1,7,5],[8,1,8,5],[9,1,9,4],[10,1,10,5],[11,1,11,5],[12,1,12,5],[25,1,25,5],[26,0,26,10],[27,1,27,5],[28,1,28,5],[29,1,29,5],[30,1,30,5],[19,1,19,5],[20,1,20,5],[21,1,21,5],[23,1,23,5],[24,1,24,5],[22,4,22,5],[43,4,43,5],[37,1,37,5],[38,1,38,5],[39,1,39,5],[40,1,40,5],[41,1,41,5],[42,1,42,5],[31,1,31,5],[32,1,32,5],[34,1,34,5],[35,1,35,5],[36,0,36,10],[33,4,33,5],[54,5,55,9],[56,0,56,10],[68,1,68,9],[69,1,69,5],[60,0,60,10],[61,1,61,9],[44,1,44,5],[45,1,45,5],[46,0,46,10],[47,0,47,10],[51,0,51,10],[70,0,70,10],[72,1,72,9],[73,0,73,10],[81,0,81,10],[84,0,84,10],[62,1,62,9],[63,1,63,9],[64,1,64,9],[65,1,65,9],[66,1,66,9],[67,1,67,9],[76,0,76,10],[83,0,83,10],[121,1,121,10],[0,8,0,10],[115,1,115,3],[115,6,115,10],[116,1,116,3],[116,6,116,10],[117,1,117,10],[118,0,118,10],[111,1,111,3],[111,6,111,10],[112,1,112,3],[112,6,112,10],[113,1,113,10],[114,0,114,10],[107,1,107,3],[107,6,107,10],[108,1,108,3],[108,6,108,10],[109,1,109,10],[110,0,110,10],[95,0,95,10],[97,0,97,10],[99,0,99,10],[100,1,100,9],[119,1,119,3],[119,6,119,10],[120,1,120,3],[120,6,120,10],[105,0,105,10],[106,0,106,10],[86,1,86,5],[87,1,88,5],[87,7,87,10],[88,7,88,10],[89,0,89,10],[93,0,93,10],[101,0,101,10],[102,1,102,5],[103,1,103,5],[104,1,104,8]]}
[null,null,null,null,null,null,null,null,"Diseñado por Ing. Gregor Rojas\nCaracas-Venezuela"]
["PROGRAMA DE CÁLCULO DEL RIESGO POR DESCARGAS ATMOSFERICAS\nBASADO EN IEC 62305-2 2006"]
["CARACTERÍSTICAS DE LA ESTRUCTURA"]
["L","Ingrese el largo de la estructura L (m)",null,null,null,null,40]
["W","Ingrese el ancho de la estructura W (m)",null,null,null,null,50]
["Hb","Ingrese la altura máxima de la estructura H (m)",null,null,null,null,25]
[null,"Marque si la estructura posee parte sobresaliente.",null,null,null,null,true]
["Hp","Ingrese la altura máxima de la estructura sobresaliente Hp (m)",null,null,null,null,{"$f":"IF(G7=TRUE,H8,G6)","v":5},5]
["Cd/b","Seleccione la ubicación de la estructura",null,null,null,null,1]
["Ce","Seleccione el ambiente donde se localizan las acometidas",null,null,null,null,2]
["ru","Seleccione el tipo de suelo existente en el interior ",null,null,null,null,1]
["ra","Seleccione el tipo de terreno existente en el exterior ",null,null,null,null,4]
["Ng","Ingrese la densidad de descargas atmosféricas a tierra (Rayos/km²-año) ",null,null,null,null,20]
["DDT","Mapa de Venezuela con densidad de descargas atmosféricas a tierra"]
["CARACTERÍSTICAS DE LOS SERVICIOS"]
["ACOMETIDA DE POTENCIA"]
[null,"Marcar si la acometida de potencia proviene  de una estructura adyacente",null,null,null,null,true,187]
["La","Ingrese la longitud de la estructura adyacente La (m) ",null,null,null,null,{"$f":"IF(G17=TRUE,H18,0)","v":10},10]
["Wa","Ingrese el ancho de la estructura adyacente Wa (m)",null,null,null,null,{"$f":"IF(G17=TRUE,H19,0)","v":5},5]
["Ha","Ingrese la altura de la estructura adyacente Ha (m)",null,null,null,null,{"$f":"IF(G17=TRUE,H20,0)","v":15},15]
[" ρ","Resistividad del suelo ρ (Ωm) (Considerar hasta un máximo de 500 Ωm)",null,null,null,null,150]
["Cd/a","Seleccione como es el lugar donde se encuentra el servicio",null,null,null,null,3]
[null,"Seleccione el tipo de la acometida ",null,null,"Aérea",null,2,null,"Enterrada o Subterránea"]
["Hc","Ingrese la altura de los conductores del servicio sobre el terreno Hc (m)",null,null,null,null,{"$f":"IF(G23=1,H24,0)","v":0},0]
["Lc","Ingrese la longitud de la acometida de servicio Lc (m)",null,null,null,null,0]
["Ct","Seleccione la existencia de transformador AT/BT en la acometida",null,null,null,null,2]
["ACOMETIDA DE TELECOMUNICACIONES "]
[null,"Marcar si la acometida proviene  de una estructura adyacente",null,null,null,null,false]
["La","Ingrese la longitud de la estructura adyacente La (m) ",null,null,null,null,{"$f":"IF(G28=TRUE,H29,0)","v":0},0]
["Wa","Ingrese el ancho de la estructura adyacente Wa (m)",null,null,null,null,{"$f":"IF(G28=TRUE,H30,0)","v":0},0]
["Ha","Ingrese la altura de la estructura adyacente Ha (m)",null,null,null,null,{"$f":"IF(G28=TRUE,H31,0)","v":0},0]
["Cd/a","Seleccione como es el lugar donde se encuentra el servicio",null,null,null,null,3]
["n","Ingrese el número de servicios conectados de comunicaciones",null,null,null,null,0,4]
[null,"Seleccione el tipo de la acometida ",null,null,"Aérea",null,1,null,"Enterrada o Subterránea"]
["Hc","Ingrese la altura de los conductores de comunicaciones desde el suelo Hc (m)",null,null,null,null,{"$f":"IF($G$34=0,0,IF($G$34=1,$H$35,0))","v":0},0]
[null,"Ingrese la longitud de la acometida de servicio (m)",null,null,null,null,{"$f":"IF(G33=0,0,H36)","v":0},0]
["OTRO TIPO DE ACOMETIDA"]
[null,"Marcar si la acometida de otro tipo proviene  de una estructura adyacente",null,null,null,null,false]
["La","Longitud de la estructura adyacente La (m) ",null,null,null,null,{"$f":"IF(G38=TRUE,H39,0)","v":0},0]
["Wa","Ancho de la estructura adyacente Wa (m)",null,null,null,null,{"$f":"IF(G38=TRUE,H40,0)","v":0},0]
["Ha","Altura de la estructura adyacente Ha (m)",null,null,null,null,{"$f":"IF(G38=TRUE,H41,0)","v":0},0]
["Cd/a","Seleccione como es el lugar donde se encuentra el servicio",null,null,null,null,3]
["n","Ingrese el número de servicios conectados",null,null,null,null,0,9]
[null,"Seleccione el tipo de la acometida ",null,null,"Aérea",null,1,null,"Enterrada o Subterránea"]
["Hc","Ingrese la altura de los conductores  desde el suelo Hc (m)",null,null,null,null,{"$f":"IF($G$44=0,0,IF($G$44=1,$H$45,0))","v":0},0]
[null,"Ingrese la longitud de la acometida de servicio (m)",null,null,null,0,0,49]
["ACCIONES PREVENTIVAS FRENTE AL RIESGO POR RAYO"]
["Marque las medidas adoptadas frente a los voltajes de paso y contacto (PA)"]
[null,"Sin medidas de protección",null,null,true,"Colocación de avisos o señalizaciones de advertencia",null,null,null,null,false]
[null,"Aislamiento eléctrico de conductores expuestos (Bajantes)",null,null,false,"Empleo de refuerzos estructurales (Cabillas) como bajantes ",null,null,null,null,false]
[null,"Equipotencialización efectiva del terreno",null,null,false,"DPS previstos de conexión equipotencial (IEC 62305-3)",null,null,null,null,false]
["Seleccione el nivel de protección de la estructura utilizado contra rayos (PB)"]
[null,"No protegida por un SPCR (Sistema Protección Contra Rayo)",null,null,1,"Protegida por un SPCR Nivel I"]
[null,"Protegida por un SPCR Nivel IV",null,null,null,"Protegida por SPCR Nivel I y cabillas como bajantes"]
[null,"Protegida por un SPCR Nivel III",null,null,null,"SPCR completo, techo metálico con armaduras metálicas continuas actuando como conductores de bajada"]
[null,"Protegida por un SPCR Nivel II"]
["Seleccione el nivel de protección interno  utilizado contra sobrevoltajes (PC)"]
[null,"Sin protección coordinada de dispositivos DPS",null,null,1,"Protección interna  coordinada con DPS Nivel I"]
[null,"Protección interna coordinada con DPS Nivel III o IV ",null,null,null,"Utilización de DPS con mejores características al Nivel I "]
[null,"Protección interna  coordinada con DPS Nivel II",null,null,null,"NOTA: Los DPS son Dispositivos Protección Contra Sobrevoltajes"]
["Seleccione el tipo de cableado interno"]
["KS3","Sin apantallar y sin precauciones de cableado para evitar bucles, área del lazo en el orden de 50 m2",null,null,null,null,null,null,null,null,1]
["KS3","Sin apantallar y con precauciones de cableado para evitar grandes bucles, área del lazo en el orden de 10 m2"]
["KS3","Sin apantallar y con precauciones de cableado para evitar bucles, área del lazo en el orden de 0,5 m2"]
["KS3","Apantallado con resistencia de la pantalla entre 5<Rs<20  Ω/Km, puesta a tierra en ambos extremos a la barra equipotencial"]
["KS3","Apantallado con resistencia de la pantalla entre 1<Rs<5  Ω/Km, puesta a tierra en ambos extremos a la barra equipotencial"]
["KS3","Apantallado con resistencia de la pantalla entre 1<Rs  Ω/Km, puesta a tierra en ambos extremos a la barra equipotencial"]
["KS3","Marque la casilla si la pantalla del cable esta conectada en ambos extremos a la barra equipotencial donde se conecta el equipo",null,null,null,null,null,null,null,null,false]
["KS1","Si la estructura a proteger posee pantallas metálicas continuas de espesor entre 0,1 mm y 0,5 mm marque la casilla",null,null,null,null,null,null,null,null,false]
["w","Ancho de la malla de la pantalla espacial o malla de conductores de bajada o distancia entre columnas metálicas cuando actúan como SPCR natural w (m).",null,null,null,null,{"$f":"H70/1000","v":3.1E-2},31]
["TIPOS DE CANALIZACION"]
[null,"Canalización metálica PAT ambos extremos a barra equipotencial",null,null,1,"Canalización NO Metálica"]
[null,"Están las estructuras metálicas, canalizaciones, acometidas de servicio y DPS conectados equipotencialmente según IEC 62305-3",null,null,null,null,null,null,null,null,false]
["Seleccione el menor valor de voltaje soportable al impulso Uw del equipamiento"]
[null,"Hasta un máximo de 1,5 KV",null,null,1,"Hasta un máximo de 4 KV"]
[null,"Hasta un máximo de 2,5 KV",null,null,null,"Hasta un máximo de 6 KV"]
["Seleccione el voltaje soportado al impulso Uw en función del tipo de cable"]
[null,"Cable línea de telecomunicación (aislante de papel) 1,5 KV",null,null,1,"Cable de potencia 60 KV"]
[null,"Cable línea de telecomunicación (aislante de PVC o PE) 5 KV",null,null,null,"Cable de potencia 75 KV"]
[null,"Cable de potencia 15 KV",null,null,null,"Cable de potencia 95 KV"]
[null,"Cable de potencia 45 KV",null,null,null,"Cable de potencia 125 KV"]
["Acceso a las hojas de cálculo y a las tablas de factores"]
[]
["EVALUACIÓN DE PÉRDIDAS"]
["PÉRDIDAS DE VIDAS HUMANAS"]
["Lo","Es una estructura con riesgo de explosión",null,null,2,"Es una Instalación médica o hospital"]
["Lf","Seleccione la actividad o el uso destinado a la estructura",null,null,null,null,1]
["Lt","Marque si existe la posibilidad de que seres vivos estén expuestos a voltajes de paso y contacto: dentro, fuera o en ambos sitios de la estructura",null,null,null,null,true,"En el interior de la estructura",null,null,true]
["Lt",null,null,null,null,null,true,"En el exterior de la estructura",null,null,false]
["Seleccione el riesgo de incendio Rf"]
[null,"Ninguno",null,null,2,"Alto (Estructura fabricada con material combustible)"]
[null,"Bajo (Almacena material combustible ocasionalmente)",null,null,null,"Explosiva (Estructura con riesgo de explosión)"]
[null,"Normal (Almacena material combustible en forma permanente)"]
["Seleccione la medida de prevención para reducir las consecuencias por fuego"]
["rP",null,null,null,null,null,1]
["Seleccione la situación especial de peligro"]
["hz",null,null,null,null,null,1]
["PÉRDIDA DE SERVICIOS ESCENCIALES"]
[null,"Gas, agua",null,null,1," Red de potencia, Telecomunicaciones, TV"]
["PÉRDIDA DE HERENCIA CULTURAL IRREEMPLAZABLE"]
[null,"Seleccione si existe herencia cultural irreemplazable en la edificación",null,null,null,null,null,null,null,null,true]
["PÉRDIDAS ECONOMINAS"]
["Lo","Seleccione la actividad o el uso destinado a la estructura",null,null,null,null,2]
["Lf","Seleccione la actividad o el uso destinado a la estructura",null,null,null,null,1]
[null,"Marque la casilla si es una propiedad donde puede producirse perdida de animales",null,null,null,null,null,null,null,null,false]
["EVALUACIÓN DEL RIESGO DE LA ESTRUCTURA"]
["RESULTADO DE RIESGO EN PERDIDAS DE VIDAS"]
["R1","VALOR CALCULADO DEL RIESGO",null,null,"<","RT","VALOR TIPICO DE RIESGO TOLERABLE"]
[null,{"$f":"IF($E$86=4,Calculos!$B$316,Calculos!$B$317)","v":2.9312218248815355E-5},null,null,{"$f":"IF(B109>G109,\">\",IF(B109<G109,\"<\",\"=\"))","v":">"},null,{"$f":"10^-5","v":1.0000000000000001E-5}]
[null,{"$f":"IF(B109>G109,\" DEBIDO A QUE R1 > RT  ES NECESARIA PROTECCION CONTRA RAYOS DE LA ESTRUCTURA\",\" DEBIDO A QUE R1 < RT EL RIESGO ESTA DENTRO DE MARGENES REQUERIDOS\")","v":" DEBIDO A QUE R1 > RT  ES NECESARIA PROTECCION CONTRA RAYOS DE LA ESTRUCTURA"}]
["RESULTADO DE RIESGO EN PERDIDAS SERVICIO PÚBLICO"]
["R2","VALOR CALCULADO DEL RIESGO",null,null,"<","RT","VALOR TIPICO DE RIESGO TOLERABLE"]
[null,{"$f":"Calculos!B318","v":3.2410661408307805E-3},null,null,{"$f":"IF(B113>G113,\">\",IF(B113<G113,\"<\",\"=\"))","v":">"},null,{"$f":"10^-3","v":1E-3}]
[null,{"$f":"IF(B113>G113,\" DEBIDO A QUE R2 > RT  ES NECESARIA PROTECCION CONTRA RAYOS PARA EVITAR PERDIDAS DE SERVICIOS\",\"DEBIDO A QUE R2 < RT EL RIESGO ESTA DENTRO DE MARGENES REQUERIDOS\")","v":" DEBIDO A QUE R2 > RT  ES NECESARIA PROTECCION CONTRA RAYOS PARA EVITAR PERDIDAS DE SERVICIOS"}]
["RESULTADO DE RIESGO EN PATRIMONIO CULTURAL"]
["R3","VALOR CALCULADO DEL RIESGO",null,null,"<","RT","VALOR TIPICO DE RIESGO TOLERABLE"]
[null,{"$f":"Calculos!B319","v":2.9169791893920146E-5},null,null,{"$f":"IF(B117>G117,\">\",IF(B117<G117,\"<\",\"=\"))","v":"<"},null,{"$f":"10^-3","v":1E-3}]
[null,{"$f":"IF(B117>G117,\" DEBIDO A QUE R3 > RT  ES NECESARIA PROTECCION CONTRA RAYOS DE LA ESTRUCTURA\",\" DEBIDO A QUE R3 < RT  EL RIESGO ESTA DENTRO DE MARGENES REQUERIDOS\")","v":" DEBIDO A QUE R3 < RT  EL RIESGO ESTA DENTRO DE MARGENES REQUERIDOS"}]
["RESULTADO DE RIESGO EN PERDIDAS ECONOMICAS"]
["R4","VALOR CALCULADO DEL RIESGO",null,null,"<","RT","VALOR TIPICO DE RIESGO TOLERABLE"]
[null,{"$f":"IF($K$105=TRUE,Calculos!$B$320,Calculos!$B$321)","v":3.2118963489368604E-3},null,null,{"$f":"IF(B121>G121,\">\",IF(B121<G121,\"<\",\"=\"))","v":">"},null,{"$f":"10^-4","v":1E-4}]
[null,{"$f":"IF(B121>G121,\" DEBIDO A QUE R4 > RT  ES NECESARIA PROTECCION CONTRA RAYOS DE LA ESTRUCTURA\",\" DEBIDO A QUE R4 < RT  EL RIESGO ESTA DENTRO DE MARGENES REQUERIDOS\")","v":" DEBIDO A QUE R4 > RT  ES NECESARIA PROTECCION CONTRA RAYOS DE LA ESTRUCTURA"}]

{"sheet":"Calculos","index":1,"n_rows":334,"n_cols":9,"rows_kept":334,"cut":false,"hidden":false,"merged":[[322,0,322,9],[1,0,1,9],[278,0,278,9],[155,0,155,9],[159,0,159,9],[162,0,162,9],[165,0,165,9],[173,0,173,9],[170,0,170,9],[227,0,227,9],[176,0,176,9],[179,0,179,9],[182,0,182,9],[188,0,188,9],[191,0,191,9],[197,0,197,9],[218,0,218,9],[58,0,58,9],[5,0,5,9],[22,0,22,9],[50,0,50,9],[52,0,52,9],[55,0,55,9],[30,0,30,9],[26,0,26,9],[34,0,34,9],[38,0,38,9],[42,0,42,9],[46,0,46,9],[10,0,10,9],[14,0,14,9],[92,0,92,9],[96,0,96,9],[99,0,99,9],[102,0,102,9],[215,0,215,9],[74,0,74,9],[77,0,77,9],[80,0,80,9],[86,0,86,9],[88,0,88,9],[272,0,272,9],[233,0,233,9],[236,0,236,9],[239,0,239,9],[242,0,242,9],[245,0,245,9],[248,0,248,9],[260,0,260,9],[263,0,263,9],[266,0,266,9],[269,0,269,9],[254,0,254,9],[257,0,257,9],[302,0,302,9],[314,0,314,9],[275,0,275,9],[287,0,287,9],[290,0,290,9],[293,0,293,9],[296,0,296,9],[299,0,299,9],[281,0,281,9],[284,0,284,9],[305,0,305,9],[308,0,308,9],[311,0,311,9],[0,8,0,9],[200,0,200,9],[206,0,206,9],[209,0,209,9],[212,0,212,9],[203,0,203,9],[138,0,138,9],[128,0,128,9],[131,0,131,9],[168,0,168,9],[141,0,141,9],[145,0,145,9],[149,0,149,9],[152,0,152,9],[109,0,109,9],[112,0,112,9],[3,0,3,9],[185,0,185,9],[194,0,194,9],[230,0,230,9],[251,0,251,9],[224,0,224,9],[221,0,221,9],[115,0,115,9],[134,0,134,9],[119,0,119,9],[122,0,122,9],[125,0,125,9],[18,0,18,9],[106,0,106,9],[61,0,61,9],[68,0,68,9]]}
[null,null,null,null,null,null,null,null,"Diseñado por Ing. Gregor Rojas\nCaracas-Venezuela"]
["HOJA DE CALCULOS "]
[]
["PROMEDIO ANUAL DE DESCARGAS"]
[]
["CALCULO DEL NUMERO DE SUCESOS PELIGROSOS POR DESCARGA EN UNA ESTRUCTURA"]
["Admax",{"$f":"('Menu principal'!$G$4*'Menu principal'!$G$5)+((6*'Menu principal'!$G$8)*('Menu principal'!$G$4+'Menu principal'!$G$5))+(9*PI()*'Menu principal'!$G$8^2)","v":5406.8583470577032},"Ad'",{"$f":"9*PI()*('Menu principal'!$G$8^2)","v":706.85834705770344},"A'D = 9 X pi X (HP)2"]
["Ad=Admin",{"$f":"('Menu principal'!$G$4*'Menu principal'!$G$5)+((6*'Menu principal'!$G$6)*('Menu principal'!$G$4+'Menu principal'!$G$5))+(9*PI()*'Menu principal'!$G$6^2)","v":33171.458676442591},"Ad''",{"$f":"IF($B$8>$D$7,$B$8,$D$7)","v":33171.458676442591},"AD = L X W + 6H X (L + W) +pi X 9H2"]
["ND",{"$f":"'Menu principal'!$G$13*(IF('Menu principal'!$G$7=TRUE,$D$8,$B$8))*(CHOOSE('Menu principal'!$G$9,0.25,0.5,1,2))*10^-6","v":0.16585729338221294},null,null,"ND = NG X Ad X Cd X 10-6"]
[]
["CALCULO DEL NUMERO DE SUCESOS PELIGROSOS ESTRUCTURA ADYACENTE (ACOMETIDA DE POTENCIA)"]
["Ad/a(P)",{"$f":"'Menu principal'!$G$18*'Menu principal'!$G$19+6*'Menu principal'!$G$20*('Menu principal'!$G$18+'Menu principal'!$G$19)+9*PI()*'Menu principal'!$G$20^2","v":7761.7251235193307},null,null,"Ad/a(P) = L X W + 6H X (L + W) +pi X 9H2"]
["Nd/a(P)",{"$f":"'Menu principal'!$G$13*$B$12*CHOOSE('Menu principal'!$G$22,0.25,0.5,1,2)*IF('Menu principal'!$G$26=1,0.2,1)*10^-6","v":0.15523450247038661},null,null,"Nd/a(P) = NG X Ad/a(P) X CD/a(P) X Ct X 10-6"]
[]
["CALCULO DEL NUMERO DE SUCESOS PELIGROSOS ESTRUCTURA ADYACENTE (ACOMETIDA DE COMUNICACIONES)"]
["Ad/a(T)",{"$f":"'Menu principal'!$G$29*'Menu principal'!$G$30+6*'Menu principal'!$G$31*('Menu principal'!$G$29+'Menu principal'!$G$30)+9*PI()*'Menu principal'!$G$31^2","v":0},null,null,"Ad/a(T) = L X W + 6H X (L + W) +pi X 9H2"]
["Nd/a(T)",{"$f":"'Menu principal'!$G$13*$B$16*CHOOSE('Menu principal'!$G$32,0.25,0.5,1,2)*10^-6","v":0},null,null,"Nd/a(T) = NG X Ad/a(T) X CD/a(T) X 10-6"]
[]
["CALCULO DEL NUMERO DE SUCESOS PELIGROSOS ESTRUCTURA ADYACENTE (ACOMETIDA OTROS)"]
["Ad/a(O)",{"$f":"'Menu principal'!$G$39*'Menu principal'!$G$40+6*'Menu principal'!$G$41*('Menu principal'!$G$39+'Menu principal'!$G$40)+9*PI()*'Menu principal'!$G$41^2","v":0},null,null,"Ad/a(O) = L X W + 6H X (L + W) +pi X 9H2"]
["Nd/a(O)",{"$f":"'Menu principal'!$G$13*$B$20*CHOOSE('Menu principal'!$G$42,0.25,0.5,1,2)*1*10^-6","v":0},null,null,"Nd/a(O) = NG X Ad/a(O) X CD/a(O) X 10-6"]
[]
["CALCULO DEL PROMEDIO ANUAL DE SUCESOS PELIGROSOS POR DESCARGAS CERCA DE LA ESTRUCTURA"]
["AM",{"$f":"2*250*('Menu principal'!$G$4+'Menu principal'!$G$6)+PI()*250^2","v":228849.54084936206},"NM",{"$f":"'Menu principal'!$G$13*($B$24-IF('Menu principal'!$G$7=TRUE,$D$8,$B$8))*(CHOOSE('Menu principal'!$G$9,0.25,0.5,1,2))*10^-6","v":0.97839041086459733},"AM = 2 X 250 X (L + W) + pi  X 2502"]
["NM",{"$f":"IF($D$24<0,0,$D$24)","v":0.97839041086459733},null,null,"NM = NG X (AM - Ad/b X Cd/b) X 10-6"]
[]
["CALCULO DEL PROMEDIO ANUAL DE DESCARGAS SOBRE LAS ACOMETIDAS DE SERVICIOS DE POTENCIA"]
["AL(P)",{"$f":"IF('Menu principal'!$G$23=1,$D$28,$D$29)","v":-1469.6938456699068},"AL Aérea",{"$f":"('Menu principal'!$G$25-3*('Menu principal'!$G$20+'Menu principal'!$G$6))*6*'Menu principal'!$G$24","v":0},"AL aérea = (LC - 3(Ha + Hb) X 6Hc",null,null,null,"AL enterrada = (LC - 3(Ha + Hb) X RAIZ ρ"]
["NL(P)",{"$f":"'Menu principal'!$G$13*$B$28*(CHOOSE('Menu principal'!$G$22,0.25,0.5,1,2))*(IF('Menu principal'!$G$26=1,0.2,1))*10^-6","v":-2.9393876913398131E-2},"AL Enterrada",{"$f":"('Menu principal'!$G$25-3*('Menu principal'!$G$20+'Menu principal'!$G$6))*SQRT('Menu principal'!$G$21)","v":-1469.6938456699068},"NL(P) = NG X AL(P) X CDa(P) X Ct X 10-6"]
[]
["CALCULO DEL PROMEDIO ANUAL DE DESCARGAS SOBRE LAS ACOMETIDAS DE SERVICIOS DE COMUNICACIONES"]
["AL(T)",{"$f":"IF('Menu principal'!$G$34=1,$D$32,$D$33)","v":0},"AL Aérea",{"$f":"('Menu principal'!$G$36-3*('Menu principal'!$G$31+'Menu principal'!G6))*6*'Menu principal'!$G$35","v":0},"AL aérea = (LC - 3(Ha + Hb) X 6Hc",null,null,null,"AL enterrada = (LC - 3(Ha + Hb) X RAIZ ρ"]
["NL(T)",{"$f":"'Menu principal'!$G$13*$B$32*(CHOOSE('Menu principal'!$G$32,0.25,0.5,1,2))*10^-6","v":0},"AL Enterrada",{"$f":"('Menu principal'!$G$36-3*('Menu principal'!$G$31+'Menu principal'!G6))*SQRT('Menu principal'!$G$21)","v":-918.55865354369178},"NL(T) = NG X AL(T) X CD/a(T) X 10-6"]
[]
["CALCULO DEL PROMEDIO ANUAL DE DESCARGAS SOBRE LAS ACOMETIDAS DE SERVICIOS DE OTRO"]
["AL(O)",{"$f":"IF('Menu principal'!$G$44=1,$D$36,$D$37)","v":0},"AL Aérea",{"$f":"('Menu principal'!$G$46-3*('Menu principal'!$G$41+'Menu principal'!$G$6))*6*'Menu principal'!$G$45","v":0},"AL aérea = (LC - 3(Ha + Hb) X 6Hc",null,null,null,"AL enterrada = (LC - 3(Ha + Hb) X RAIZ ρ"]
["NL(O)",{"$f":"'Menu principal'!$G$13*$B$36*(CHOOSE('Menu principal'!$G$42,0.25,0.5,1,2))*10^-6","v":0},"AL Enterrada",{"$f":"('Menu principal'!$G$46-3*('Menu principal'!$G$41+'Menu principal'!$G$6))*SQRT('Menu principal'!$G$21)","v":-918.55865354369178},"NL(O) = NG X AL(O) X CD/a(O) X 10-6"]
[]
["CALCULO DEL PROMEDIO ANUAL DE DESCARGAS CERCA DE LAS ACOMETIDAS DE POTENCIA"]
["Ai(P)",{"$f":"IF('Menu principal'!$G$23=1,$D$40,$D$41)","v":0},"Ai Aérea",{"$f":"1000*'Menu principal'!$G$25","v":0},"Ai aérea = 1000 x LC",null,null,null,"Ai enterrada = 25 x LC X RAIZ ρ"]
["Ni(P)",{"$f":"'Menu principal'!$G$13*$B$40*(CHOOSE('Menu principal'!$G$10,0.01,0.1,0.5,1))*(CHOOSE('Menu principal'!$G$26,0.2,1))*10^-6","v":0},"Ai Enterrada",{"$f":"25*'Menu principal'!$G$25*SQRT('Menu principal'!$G$21)","v":0},"Ni(P) = NG X Ai(P) X CD/a(P) X Ct X 10-6"]
[]
["CALCULO DEL PROMEDIO ANUAL DE DESCARGAS CERCA DE LAS ACOMETIDAS DE COMUNICACIONES"]
["Ai(T)",{"$f":"IF('Menu principal'!$G$34=1,$D$44,$D$45)","v":0},"Ai Aérea",{"$f":"1000*'Menu principal'!$G$36","v":0},"Ai aérea = 1000 x LC",null,null,null,"Ai enterrada = 25 x LC X RAIZ ρ"]
["Ni(T)",{"$f":"'Menu principal'!$G$13*$B$44*(CHOOSE('Menu principal'!$G$10,0,0.1,0.5,1))*10^-6","v":0},"Ai Enterrada",{"$f":"25*'Menu principal'!$G$36*SQRT('Menu principal'!$G$21)","v":0},"Ni(T) = NG X Ai(T) X CD/a(T) X 10-6"]
[]
["CALCULO DEL PROMEDIO ANUAL DE DESCARGAS CERCA DE LAS ACOMETIDAS DE OTRO"]
["Ai(O)",{"$f":"IF('Menu principal'!$G$44=1,$D$48,$D$49)","v":0},"Ai Aérea",{"$f":"1000*'Menu principal'!$G$46","v":0},"Ai aérea = 1000 x LC",null,null,null,"Ai enterrada = 25 x LC X RAIZ ρ"]
["Ni(O)",{"$f":"'Menu principal'!$G$13*$B$48*(CHOOSE('Menu principal'!$G$10,0,0.1,0.5,1))*10^-6","v":0},"Ai Enterrada",{"$f":"25*'Menu principal'!$G$46*SQRT('Menu principal'!$G$21)","v":0},"Ni(O) = NG X Ai(O) X CD/a(O) X 10-6"]
[]
["PROBABILIDADES DE DAÑOS Y LESIONES"]
[]
["PROBABILIDAD DE DAÑOS A SERES VIVOS (DESCARGAS EN LA ESTRUCTURA)"]
["PA",{"$f":"IF('Menu principal'!$E$49=TRUE,1,1)*IF('Menu principal'!$E$50=TRUE,10^-2,1)*IF('Menu principal'!$E$51=TRUE,10^-2,1)*IF('Menu principal'!$K$49=TRUE,10^-1,1)*IF('Menu principal'!$K$50=TRUE,0,1)","v":1},null,null,null,null,"PA = PTA x PB"]
[]
["PROBABILIDAD DE DAÑOS FISICOS EN UNA ESTRUCTURA (DESCARGAS EN LA ESTRUCTURA)"]
["PB",{"$f":"CHOOSE('Menu principal'!$E$53,1,0.2,0.1,0.05,0.02,0.01,0.001)","v":1}]
[]
["PROBABILIDAD DE FALLA DE LOS SISTEMAS INTERNOS (DESCARGAS CERCA DE LA ESTRUCTURA)"]
["Pc=PDPS",{"$f":"CHOOSE('Menu principal'!$E$58,1,0.03,0.02,0.01,0.005)","v":1}]
[]
["PROBABILIDAD PM DE FALLA DE LOS SISTEMAS INTERNOS (DESCARGAS CERCA DE LA ESTRUCTURA)"]
["KS1",{"$f":"IF('Menu principal'!$K$69=TRUE,10^-4,0.12*'Menu principal'!$G$70)","v":3.7199999999999998E-3},"KS2",{"$f":"$B$63","v":3.7199999999999998E-3},null,null,"KS1 = 0,12 x Wm",null,"KS2 = KS1"]
["KS3",{"$f":"IF('Menu principal'!$E$72=1,$D$64*0.1,$D$64)","v":0.1},"Ks3'",{"$f":"CHOOSE('Menu principal'!$K$62,1,0.2,0.02,0.001,0.0002,0.0001)","v":1},"KS4",{"$f":"1.5/CHOOSE('Menu principal'!E78,1.5,5,15,45,60,75,95,125)","v":1},"KS3 = función tabla B.5",null,"KS4 = 1,5/ Uw"]
["KMS",{"$f":"$B$63*$D$63*$B$64*$F$64","v":1.3838399999999998E-6},null,null,null,null,"KMS = KS1 x KS2 x KS3  x KS4"]
["PMS",{"$f":"IF($B$65>=0.4,1,IF($B$65>=0.15,0.9,IF($B$65>=0.07,0.5,IF($B$65>=0.035,0.1,IF($B$65>=0.021,0.01,IF($B$65>=0.016,0.005,IF($B$65>=0.015,0.003,IF($B$65>=0.014,0.001,0.0001))))))))","v":1E-4},null,null,null,null,"PMS = función de valores tabla B.4"]
["PM",{"$f":"IF('Menu principal'!$E$58=1,$B$66,IF($B$66<$B$60,$B$66,$B$60))","v":1E-4},null,null,null,null,"PM = función del menor valor entre PMS y PDPS"]
[]
["PROBABILIDAD DE DAÑOS A SERES VIVOS (DESCARGAS EN UN SERVICIO CONECTADO)"]
[null,null,"PLD(1,5)",{"$f":"IF('Menu principal'!$K$62=4,1,IF('Menu principal'!$K$62=5,0.8,IF('Menu principal'!$K$62=6,0.4,1)))","v":1},"PLD(4)",{"$f":"IF('Menu principal'!$K$62=4,0.9,IF('Menu principal'!$K$62=5,0.3,IF('Menu principal'!$K$62=6,0.04,1)))","v":1},"PLD = función de valores tabla B.6"]
[null,null,"PLD(2,5)",{"$f":"IF('Menu principal'!$K$62=4,0.95,IF('Menu principal'!$K$62=5,0.6,IF('Menu principal'!$K$62=6,0.2,1)))","v":1},"PLD(6)",{"$f":"IF('Menu principal'!$K$62=4,0.8,IF('Menu principal'!$K$62=5,0.1,IF('Menu principal'!$K$62=6,0.02,1)))","v":1},"PLD = función de valores tabla B.6"]
["PLD",{"$f":"IF('Menu principal'!$E$75=1,$D$70,IF('Menu principal'!$E$75=2,$D$71,IF('Menu principal'!$E$75=3,$F$70,$F$71)))","v":1},"Menor valor entre PDPS y PLD",null,null,{"$f":"IF($B$72<$B$60,$B$72,$B$60)","v":1}]
["PU",{"$f":"IF('Menu principal'!$K$51=TRUE,$F$72,$B$72)","v":1},null,null,null,null,"PU = PTU x PEB x PLD  x CLD"]
[]
["PROBABILIDAD DE DAÑOS FISICOS EN UNA ESTRUCTURA (DESCARGAS EN UN SERVICIO CONECTADO)"]
["PV",{"$f":"IF('Menu principal'!$K$73=TRUE,$F$72,$B$72)","v":1},null,null,null,null,"PV =  PEB x PLD  x CLD"]
[]
["PROBABILIDAD DE FALLA DE LOS SISTEMAS INTERNOS (DESCARGAS EN UN SERVICIO CONECTADO)"]
["PW",{"$f":"IF('Menu principal'!$K$73=TRUE,$F$72,$B$72)","v":1},null,null,null,null,"PW =  PSPD x PLD  x CLD"]
[]
["PROBABILIDAD DE FALLA DE LOS SISTEMAS INTERNOS (DESCARGAS CERCA DE UN SERVICIO CONECTADO)"]
[null,null,"PLI(1,5)",{"$f":"IF('Menu principal'!$K$62=1,1,IF('Menu principal'!$K$62=2,1,IF('Menu principal'!$K$62=3,1,IF('Menu principal'!$K$68=FALSE,0.5,IF('Menu principal'!$K$62=4,0.15,IF('Menu principal'!$K$62=5,0.04,IF('Menu principal'!$K$62=6,0.02,1)))))))","v":1},"PLI(4)",{"$f":"IF('Menu principal'!$K$62=1,0.2,IF('Menu principal'!$K$62=2,0.2,IF('Menu principal'!$K$62=3,0.2,IF('Menu principal'!$K$68=FALSE,0.1,IF('Menu principal'!$K$62=4,0.03,IF('Menu principal'!$K$62=5,0.008,IF('Menu principal'!$K$62=6,0.004,1)))))))","v":0.2}]
[null,null,"PLI(2,5)",{"$f":"IF('Menu principal'!$K$62=1,0.4,IF('Menu principal'!$K$62=2,0.4,IF('Menu principal'!$K$62=3,0.4,IF('Menu principal'!$K$68=FALSE,0.2,IF('Menu principal'!$K$62=4,0.06,IF('Menu principal'!$K$62=5,0.02,IF('Menu principal'!$K$62=6,0.008,1)))))))","v":0.4},"PLI(6)",{"$f":"IF('Menu principal'!$K$62=1,0.1,IF('Menu principal'!$K$62=2,0.1,IF('Menu principal'!$K$62=3,0.1,IF('Menu principal'!$K$68=FALSE,0.05,IF('Menu principal'!$K$62=4,0.02,IF('Menu principal'!$K$62=5,0.004,IF('Menu principal'!$K$62=6,0.002,1)))))))","v":0.1}]
["PLI",{"$f":"IF('Menu principal'!$E$75=1,$D$82,IF('Menu principal'!$E$75=2,$D$83,IF('Menu principal'!$E$75=3,$F$82,$F$83)))","v":1},"Menor valor entre PDPS y PLI",null,null,{"$f":"IF($B$84<$B$60,$B$84,$B$60)","v":1}]
["PZ",{"$f":"IF('Menu principal'!$E$58=1,$B$84,$F$84)","v":1},null,null,null,null,"PZ =  PSPD x PLI  x CLI"]
[]
["PERDIDAS POR AÑO"]
[]
["PÉRDIDA DE VIDAS POR VOLTAJES DE PASO Y CONTACTO EN EL EXTERIOR DE LA ESTRUCTURA"]
["ra",{"$f":"CHOOSE('Menu principal'!$G$12,10^-2,10^-3,10^-4,10^-5)","v":1.0000000000000001E-5},"Lt1",{"$f":"IF('Menu principal'!$G$89=TRUE,10^-2,0)","v":0.01}]
["LA1",{"$f":"$B$90*$D$90","v":1.0000000000000001E-7},null,null,null,null,"LA = ra X Lt"]
[]
["PÉRDIDA DE VIDAS POR FUEGO O EXPLOSIÓN DENTRO DE LA ESTRUCTURA POR IMPACTO SOBRE LA ESTRUCTURA"]
["rp",{"$f":"IF('Menu principal'!$E$86=1,1,CHOOSE('Menu principal'!$G$95,1,0.5,0.2))","v":1},"hz",{"$f":"CHOOSE('Menu principal'!$G$97,1,2,5,5,10,20,50)","v":1},"rf",{"$f":"CHOOSE('Menu principal'!$E$91,0,10^-3,10^-2,10^-1,1)","v":1E-3},"Lf1",{"$f":"CHOOSE('Menu principal'!$G$87,10^-1,5*10^-2,2*10^-2,10^-2)","v":0.1}]
["LB1",{"$f":"$B$94*$D$94*$F$94*$H$94","v":1E-4},null,null,null,null,"LB = LV = rP X hz X rf X  Lf"]
[]
["PÉRDIDAS DE VIDAS POR FALLA SISTEMAS INTERNOS POR IER (IMPULSOS ELECTROMAGNETICOS DEL RAYO) A CAUSA DE DESCARGAS EN LA ESTRUCTURA"]
["LC1",{"$f":"$D$98","v":1E-3},"Lo1",{"$f":"CHOOSE('Menu principal'!$E$86,10^-1,10^-3)","v":1E-3},null,null,"LC = LM = LW = LZ = LO"]
[]
["PÉRDIDA DE VIDAS POR FALLA DE SISTEMAS INTERNOS POR IER (IMPULSOS ELECTROMAGNETICOS DEL RAYO) A CAUSA DE DESCARGAS CERCA DE LA ESTRUCTURA"]
["LM1",{"$f":"$B$98","v":1E-3},null,null,null,null,"LC = LM = LW = LZ = LO"]
[]
["PÉRDIDA DE VIDAS POR VOLTAJES DE CONTACTO EN EL INTERIOR DE LA ESTRUCTURA"]
["ru",{"$f":"CHOOSE('Menu principal'!$G$11,10^-2,10^-3,10^-4,10^-5)","v":0.01},"LtU",{"$f":"IF('Menu principal'!$G$88=TRUE,10^-4,0)","v":1E-4}]
["LU1",{"$f":"$B$104*$D$104","v":1.0000000000000002E-6},null,null,null,null,"LU = rU X Lt"]
[]
["PÉRDIDA DE VIDAS POR DAÑOS FISICOS A CAUSA DE DESCARGAS EN ACOMETIDAS DE SERVICIOS "]
["LV1",{"$f":"$B$95","v":1E-4}]
[]
["PÉRDIDAS DE VIDAS POR FALLA SISTEMAS INTERNOS POR IER (IMPULSOS ELECTROMAGNETICOS DEL RAYO) A CAUSA DE DESCARGAS SOBRE LA ACOMETIDA DE SERVICIOS"]
["LW1",{"$f":"$B$101","v":1E-3},null,null,null,null,"LC = LM = LW = LZ = LO"]
[]
["PÉRDIDAS DE VIDAS POR FALLA SISTEMAS INTERNOS POR IER (IMPULSOS ELECTROMAGNETICOS DEL RAYO) A CAUSA DE DESCARGAS CERCA DE LA ACOMETIDA DE SERVICIOS"]
["LZ1",{"$f":"B111","v":1E-3},null,null,null,null,"LC = LM = LW = LZ = LO"]
[]
["PÉRDIDA INACEPTABLE DEL SERVICIO PÚBLICO POR EXPLOSIÓN DENTRO DE LA ESTRUCTURA POR ARCO ELÉCTRICO, POR DESCARGA EN LA ESTRUCTURA"]
["rp",{"$f":"$B$94","v":1},"rf",{"$f":"$F$94","v":1E-3},"Lf2",{"$f":"CHOOSE('Menu principal'!$E$99,10^-1,10^-2)","v":0.1}]
["LB2",{"$f":"$B$117*$D$117*$F$117","v":1E-4},null,null,null,null,"LB = LV = rP X rf X  Lf2"]
[]
["PÉRDIDA INACEPTABLE DEL SERVICIO PÚBLICO POR FALLAS DE SISTEMAS INTERNOS POR IER (IMPULSOS ELECTROMAGNETICOS DEL RAYO)  A CAUSA DE DESCARGAS EN LA ESTRUCTURA"]
["LC2",{"$f":"$D$121","v":0.01},"Lo2",{"$f":"CHOOSE('Menu principal'!$E$99,10^-2,10^-3)","v":0.01},null,null,"LC = LM = LW = LZ = LO"]
[]
["PÉRDIDA INACEPTABLE DEL SERVICIO PÚBLICO POR FALLAS DE SISTEMAS INTERNOS POR IER (IMPULSOS ELECTROMAGNETICOS DEL RAYO)  A CAUSA DE DESCARGAS CERCA DE LA ESTRUCTURA"]
["LM2",{"$f":"$B$121","v":0.01},null,null,null,null,"LC = LM = LW = LZ = LO"]
[]
["PÉRDIDA INACEPTABLE DEL SERVICIO PÚBLICO POR DAÑOS FISICOS A CAUSA DE DESCARGAS EN LA ACOMETIDA DE SERVICIOS"]
["LV2",{"$f":"$B$118","v":1E-4},null,null,null,null,"LV = LB"]
[]
["PÉRDIDA INACEPTABLE DEL SERVICIO PÚBLICO POR FALLAS DE SISTEMAS INTERNOS POR IER (IMPULSOS ELECTROMAGNETICOS DEL RAYO)  A CAUSA DE DESCARGAS EN LA ACOMETIDA DE SERVICIOS"]
["LW2",{"$f":"$B$124","v":0.01},null,null,null,null,"LC = LM = LW = LZ = LO"]
[]
["PÉRDIDA INACEPTABLE DEL SERVICIO PÚBLICO POR IER (IMPULSOS ELECTROMAGNETICOS DEL RAYO)  A CAUSA DE DESCARGAS CERCANAS LA ACOMETIDA DE SERVICIOS"]
["LZ2",{"$f":"$B$130","v":0.01},null,null,null,null,"LC = LM = LW = LZ = LO"]
[]
["PÉRDIDAS DE PATRIMONIO CULTURAL IRREEMPLAZABLES POR FUEGO O EXPLOSIÓN DENTRO DE LA ESTRUCTURA POR ARCO ELÉCTRICO POR IMPACTO SOBRE LA ESTRUCTURA"]
["rp",{"$f":"$B$94","v":1},"rf",{"$f":"$F$94","v":1E-3},"Lf",{"$f":"10^-1","v":0.1}]
["LB3",{"$f":"$B$136*$D$136*$F$136","v":1E-4},null,null,null,null,"LB3 = LV3 = rP X rf X  Lf"]
[]
["PÉRDIDAS DE PATRIMONIO CULTURAL IRREEMPLAZABLES  POR DAÑOS FÍSICOS A CAUSA DE \nDESCARGAS DOBRE LAS ACOMETIDAS DE SERVICIOS"]
["LV3",{"$f":"$B$137","v":1E-4},null,null,null,null,"LB3 = LV3"]
[]
["PÉRDIDAS ECONOMICAS POR VOLTAJES DE PASO Y CONTACTO EN EL EXTERIOR DE LA ESTRUCTURA"]
["ra",{"$f":"CHOOSE('Menu principal'!$G$12,10^-2,10^-3,10^-4,10^-5)","v":1.0000000000000001E-5},"Lt4",{"$f":"IF('Menu principal'!$G$89=TRUE,10^-2,0)","v":0.01}]
["LA4",{"$f":"$B$143*$D$143","v":1.0000000000000001E-7},null,null,null,null,"LA = ra X Lt"]
[]
["PÉRDIDAS ECONOMICAS POR FUEGO O EXPLOSIÓN DENTRO DE LA ESTRUCTURA POR ARCO ELÉCTRICO POR DESCARGA SOBRE LA ESTRUCTURA"]
["rp",{"$f":"CHOOSE('Menu principal'!$G$95,1,0.5,0.2)","v":1},"hz",{"$f":"CHOOSE('Menu principal'!$G$97,1,2,5,5,10,20,50)","v":1},"rf",{"$f":"CHOOSE('Menu principal'!$E$91,0,10^-3,10^-2,10^-1,1)","v":1E-3},"Lf4",{"$f":"CHOOSE('Menu principal'!$G$104,0.5,0.2,0.1)","v":0.5}]
["LB4",{"$f":"$B$147*$D$147*$F$147*$H$147","v":5.0000000000000001E-4},null,null,null,null,"LB = LV = rP X hz X rf X  Lf"]
[]
["PÉRDIDAS ECONOMICAS POR FALLA DE SISTEMAS INTERNOS POR IER (IMPULSOS ELECTROMAGNETICOS DEL RAYO) A CAUSA DE DESCARGAS EN LA ESTRUCTURA"]
["LC4",{"$f":"$D$151","v":0.01},"Lo4",{"$f":"CHOOSE('Menu principal'!$G$103,10^-1,10^-2,10^-3,10^-4)","v":0.01},null,null,"LC = LM = LW = LZ = LO"]
[]
["PÉRDIDAS ECONOMICAS POR FALLA DE SISTEMAS INTERNOS POR IER (IMPULSOS ELECTROMAGNETICOS DEL RAYO) A CAUSA DE DESCARGAS CERCA DE LA ESTRUCTURA"]
["LM4",{"$f":"$B$151","v":0.01},null,null,null,null,"LC = LM = LW = LZ = LO"]
[]
["PÉRDIDAS ECONOMICAS POR VOLTAJES DE PASO Y CONTACTO EN EL INTERIOR DE LA ESTRUCTURA"]
["ru",{"$f":"CHOOSE('Menu principal'!$G$11,10^-2,10^-3,10^-4,10^-5)","v":0.01},"LtU4",{"$f":"IF('Menu principal'!$G$88=TRUE,10^-4,0)","v":1E-4}]
["LU4",{"$f":"$B$157*$D$157","v":1.0000000000000002E-6},null,null,null,null,"LU = rU X Lt"]
[]
["PÉRDIDAS ECONOMICAS POR DAÑOS FISICOS A CAUSA DE DESCARGAS EN ACOMETIDAS DE SERVICIOS "]
["LV4",{"$f":"$B$148","v":5.0000000000000001E-4}]
[]
["PÉRDIDAS ECONOMICAS POR FALLA DE SISTEMAS INTERNOS POR IER (IMPULSOS ELECTROMAGNETICOS DEL RAYO) A CAUSA DE DESCARGAS EN LA ACOMETIDA DE SERVICIOS"]
["LW4",{"$f":"$B$154","v":0.01},null,null,null,null,"LC = LM = LW = LZ = LO"]
[]
["PÉRDIDAS ECONOMICAS POR FALLA DE SISTEMAS INTERNOS POR IER (IMPULSOS ELECTROMAGNETICOS DEL RAYO) A CAUSA DE DESCARGAS CERCA DE LA ACOMETIDA DE SERVICIOS"]
["LZ4",{"$f":"$B$164","v":0.01},null,null,null,null,"LC = LM = LW = LZ = LO"]
[]
["EVALUACIÓN DE RIESGOS"]
[]
["DESCARGA SOBRE ESTRUCTURA S1 PARA DAÑO D1 (L1 PÉRDIDAS DE VIDAS HUMANAS)"]
["RA1",{"$f":"$B$9*$B$54*$B$91","v":1.6585729338221295E-8},null,null,null,null,"RA1 = ND X PA X LA1"]
[]
["DESCARGA SOBRE ESTRUCTURA S1 PARA DAÑO D1 (L4 PÉRDIDAS DE VIDAS DE ANIMALES)"]
["RA4",{"$f":"$B$9*$B$54*$B$144","v":1.6585729338221295E-8},null,null,null,null,"RA4 = ND X PA X LA4"]
[]
["DESCARGA SOBRE ESTRUCTURA S1 PARA DAÑO D2 (L1 PÉRDIDAS DE VIDAS HUMANAS)"]
["RB1",{"$f":"$B$9*$B$57*$B$95","v":1.6585729338221295E-5},null,null,null,null,"RB1 = ND X PB X LB1"]
[]
["DESCARGA SOBRE ESTRUCTURA S1 PARA DAÑO D2 (L2 PÉRDIDAS DEL SERVICIO PÚBLICO)"]
["RB2",{"$f":"$B$9*$B$57*$B$118","v":1.6585729338221295E-5},null,null,null,null,"RB2 = ND X PB X LB2"]
[]
["DESCARGA SOBRE ESTRUCTURA S1 PARA DAÑO D2 (L3 PÉRDIDAS DE VALOR CULTURAL)"]
["RB3",{"$f":"IF('Menu principal'!$K$101=FALSE,0,$B$9*$B$57*$B$137)","v":1.6585729338221295E-5},null,null,null,null,"RB3 = ND X PB X LB3"]
[]
["DESCARGA SOBRE ESTRUCTURA S1 PARA DAÑO D2 (L4 PÉRDIDAS ECONOMICAS)"]
["RB4",{"$f":"IF('Menu principal'!$K$105=FALSE,0,$B$9*$B$57*$B$148)","v":0},null,null,null,null,"RB4 = ND X PB X LB4"]
[]
["DESCARGA SOBRE LA ESTRUCTURA S1 PARA DAÑO D3 (L1 PÉRDIDAS DE VIDAS HUMANAS)"]
["RC1",{"$f":"$B$9*$B$60*$B$98","v":1.6585729338221294E-4},null,null,null,null,"RC1 = ND X PC X LC1"]
[]
["DESCARGA SOBRE ESTRUCTURA S1 PARA DAÑO D3 (L2 PÉRDIDAS  DEL SERVICIO PÚBLICO)"]
["RC2",{"$f":"$B$9*$B$60*$B$121","v":1.6585729338221295E-3},null,null,null,null,"RC2 = ND X PC X LC2"]
[]
["DESCARGA SOBRE ESTRUCTURA S1 PARA DAÑO D3 (L4 PÉRDIDAS ECONOMICAS)"]
["RC4",{"$f":"$B$9*$B$60*$B$151","v":1.6585729338221295E-3},null,null,null,null,"RC4 = ND X PC X LC4"]
[]
["DESCARGA CERCA A ESTRUCTURA S2 PARA DAÑO D3 (L1 PÉRDIDAS DE VIDAS HUMANAS)"]
["RM1",{"$f":"$B$25*$B$67*$B$101","v":9.7839041086459733E-8},null,null,null,null,"RM1 = NM X PM X LM1"]
[]
["DESCARGA CERCA A ESTRUCTURA S2 PARA DAÑO D3 (L2 PÉRDIDAS DEL SERVICIO PÚBLICO)"]
["RM2",{"$f":"$B$25*$B$67*$B$124","v":9.7839041086459741E-7},null,null,null,null,"RM2 = NM X PM X LM2"]
[]
["DESCARGA CERCA A ESTRUCTURA S2 PARA DAÑO D3 (L4 PÉRDIDAS ECONOMICAS)"]
["RM4",{"$f":"$B$25*$B$67*$B$154","v":9.7839041086459741E-7},null,null,null,null,"RM4 = NM X PM X LM4"]
[]
["DESCARGA SOBRE ACOMETIDA DE POTENCIA CONECTADO A LA ESTRUCTURA S3 PARA DAÑO D1 \n( L1 PERDIDAS VIDAS HUMANAS POR VOLTAJES DE CONTACTO )"]
["RU1(P)",{"$f":"($B$29+$B$13)*$B$73*$B$105","v":1.2584062555698852E-7},null,null,null,null,"RU(P) = (NL(P)+ Nda(P)) X PU X LU"]
[]
["DESCARGA SOBRE ACOMETIDA DE TELECOMUNICACIONES CONECTADO A LA ESTRUCTURA  S3 PARA DAÑO D1 \n( L1 PERDIDAS VIDAS HUMANAS POR VOLTAJES DE CONTACTO )"]
["RU1(T)",{"$f":"IF('Menu principal'!$G$33=0,0,($B$33+$B$17)*$B$73*$B$105)","v":0},null,null,null,null,"RU(T) = (NL(T)+ Nda(T)) X PU X LU"]
[]
["DESCARGA SOBRE ACOMETIDA DE OTRO SERVICIO CONECTADO A LA ESTRUCTURA  S3 PARA DAÑO D1 \n( L1 PERDIDAS VIDAS HUMANAS POR VOLTAJES DE CONTACTO )"]
["RU1(O)",{"$f":"IF('Menu principal'!$G$43=0,0,($B$37+$B$21)*$B$73*$B$105)","v":0},null,null,null,null,"RU(O) = (NL(O)+ Nda(O)) X PU X LU"]
[]
["DESCARGA SOBRE ACOMETIDA DE POTENCIA CONECTADO A LA ESTRUCTURA S3 PARA DAÑO D1 \n( LU4 PERDIDAS VIDAS DE ANIMALES POR VOLTAJES DE CONTACTO )"]
["RU4(P)",{"$f":"($B$29+$B$13)*$B$73*$B$158","v":1.2584062555698852E-7},null,null,null,null,"RU4) = (NL+ Nda) X PU X LU4"]
[]
["DESCARGA SOBRE ACOMETIDA DE SERVICIO TELECOMUNICACIONES S3 PARA DAÑO D1 \n( LU4 PERDIDAS VIDAS DE ANIMALES POR VOLTAJES DE CONTACTO )"]
["RU4(T)",{"$f":"IF('Menu principal'!$G$33=0,0,($B$33+$B$17)*$B$73*$B$158)","v":0},null,null,null,null,"RU4(T) = (NL(T)+ Nda(T)) X PU X LU4"]
[]
["DESCARGA SOBRE ACOMETIDA DE OTRO SERVICIO S3 PARA DAÑO D1 \n( LU4 PERDIDAS VIDAS DE ANIMALES POR VOLTAJES DE CONTACTO )"]
["RU4(O)",{"$f":"IF('Menu principal'!$G$43=0,0,($B$37+$B$21)*$B$73*$B$158)","v":0},null,null,null,null,"RU4(O) = (NL(O)+ Nda(O)) X PU X LU4"]
[]
["DESCARGA SOBRE ACOMETIDA POTENCIA S3 PARA DAÑO D2 ( LV1 PARA PÉRDIDAS DE VIDAS HUMANAS)"]
["RV11",{"$f":"($B$29+$B$13)*$B$76*$B$108","v":1.258406255569885E-5},null,null,null,null,"RV11 = (NL(P)+ Nda(P)) X PV X LV1"]
[]
["DESCARGA SOBRE ACOMETIDA COMUNICACIONES S3 PARA DAÑO D2 ( LV1 PARA PÉRDIDAS DE VIDAS HUMANAS)"]
["RV12",{"$f":"IF('Menu principal'!$G$33=0,0,($B$33+$B$17)*$B$76*$B$108)","v":0},null,null,null,null,"RV12 = (NL(T)+ Nda(T)) X PV X LV1"]
[]
["DESCARGA SOBRE ACOMETIDA OTROS S3 PARA DAÑO D2 ( LV1 PARA PÉRDIDAS DE VIDAS HUMANAS)"]
["RV13",{"$f":"IF('Menu principal'!$G$33=0,0,($B$33+$B$17)*$B$76*$B$108)","v":0},null,null,null,null,"RV13 = (NL(O)+ Nda(O)) X PV X LV1"]
[]
["DESCARGA SOBRE ACOMETIDA POTENCIA S3 PARA DAÑO D2 ( LV2 PARA PÉRDIDAS DE SERVICIO PUBLICO)"]
["RV21",{"$f":"($B$29+$B$13)*$B$76*$B$127","v":1.258406255569885E-5},null,null,null,null,"RV21 = (NL(P)+ Nda(P)) X PV X LV2"]
[]
["DESCARGA SOBRE ACOMETIDA COMUNICACIONES S3 PARA DAÑO D2 ( LV2 PARA PÉRDIDAS DE SERVICIO PUBLICO)"]
["RV22",{"$f":"IF('Menu principal'!$G$33=0,0,(B33+B17)*B76*B127)","v":0},null,null,null,null,"RV22 = (NL(T)+ Nda(T)) X PV X LV2"]
[]
["DESCARGA SOBRE ACOMETIDA OTROS S3 PARA DAÑO D2 ( LV2 PARA PÉRDIDAS DE SERVICIO PUBLICO)"]
["RV23",{"$f":"IF('Menu principal'!$G$43=0,0,(B37+B21)*B76*B127)","v":0},null,null,null,null,"RV32 = (NL(O)+ Nda(O)) X PV X LV2"]
[]
["DESCARGA SOBRE ACOMETIDA POTENCIA S3 PARA DAÑO D2 \n( LV3 PARA PÉRDIDAS VALOR CULTURAL)"]
["RV31",{"$f":"IF('Menu principal'!$K$101=TRUE,($B$29+$B$13)*$B$76*$B$140,0)","v":1.258406255569885E-5},null,null,null,null,"RV31 = (NL(P)+ Nda(P)) X PV X LV3"]
[]
["DESCARGA SOBRE ACOMETIDA COMUNICACIONES S3 PARA DAÑO D2 \n( LV3 PARA PÉRDIDAS VALOR CULTURAL)"]
["RV32",{"$f":"IF('Menu principal'!$G$33=0,0,IF('Menu principal'!$K$101=TRUE,($B$33+$B$17)*$B$76*$B$140,0))","v":0},null,null,null,null,"RV32 = (NL(T)+ Nda(T)) X PV X LV3"]
[]
["DESCARGA SOBRE ACOMETIDA OTROS S3 PARA DAÑO D2 \n( LV3 PARA PÉRDIDAS VALOR CULTURAL)"]
["RV33",{"$f":"IF('Menu principal'!$G$43=0,0,IF('Menu principal'!$K$101=TRUE,($B$37+$B$21)*$B$76*$B$140,0))","v":0},null,null,null,null,"RV33 = (NL(O)+ Nda(O)) X PV X LV3"]
[]
["DESCARGA SOBRE ACOMETIDA POTENCIA S3 PARA DAÑO D2 \n( LV4 PARA PÉRDIDAS ECONOMICAS)"]
["RV41",{"$f":"IF('Menu principal'!$K$105=TRUE,($B$29+$B$13)*$B$76*$B$161,0)","v":0},null,null,null,null,"RV41 = (NL(P)+ Nda(P)) X PV X LV4"]
[]
["DESCARGA SOBRE ACOMETIDA COMUNICACIONES S3 PARA DAÑO D2 \n( LV4 PARA PÉRDIDAS ECONOMICAS)"]
["RV42",{"$f":"IF('Menu principal'!$G$33=0,0,IF('Menu principal'!$K$105=TRUE,($B$33+$B$17)*$B$76*$B$161,0))","v":0},null,null,null,null,"RV42 = (NL(T)+ Nda(T)) X PV X LV4"]
[]
["DESCARGA SOBRE ACOMETIDA OTROS S3 PARA DAÑO D2 \n( LV4 PARA PÉRDIDAS ECONOMICAS)"]
["RV43",{"$f":"IF('Menu principal'!$G$43=0,0,IF('Menu principal'!$K$105=TRUE,($B$37+$B$21)*$B$76*$B$161,0))","v":0},null,null,null,null,"RV43 = (NL(O)+ Nda(O)) X PV X LV4"]
[]
["DESCARGA SOBRE ACOMETIDA POTENCIA S3 PARA DAÑO D3 ( LW1 PARA PÉRDIDAS VIDAS HUMANAS)"]
["RW11",{"$f":"($B$29+$B$13)*$B$79*$B$111","v":1.2584062555698851E-4},null,null,null,null,"RW11 = (NL(P)+ Nda(P)) X PW X LW1"]
[]
["DESCARGA SOBRE ACOMETIDA COMUNICACIONES S3 PARA DAÑO D3 ( LW1 PARA PÉRDIDAS VIDAS HUMANAS)"]
["RW12",{"$f":"IF('Menu principal'!$G$33=0,0,($B$33+$B$17)*$B$79*$B$111)","v":0},null,null,null,null,"RW21 = (NL(T)+ Nda(T)) X PW X LW1"]
[]
["DESCARGA SOBRE ACOMETIDA OTROS S3 PARA DAÑO D3 ( LW1 PARA PÉRDIDAS VIDAS HUMANAS)"]
["RW13",{"$f":"IF('Menu principal'!$G$43=0,0,($B$37+$B$21)*$B$79*$B$111)","v":0},null,null,null,null,"RW31 = (NL(0)+ Nda(0)) X PW X LW1"]
[]
["DESCARGA SOBRE ACOMETIDA POTENCIA S3 PARA DAÑO D3 ( LW2 PARA PÉRDIDAS SERVICIO PUBLICO)"]
["RW21",{"$f":"($B$29+$B$13)*$B$79*$B$130","v":1.258406255569885E-3},null,null,null,null,"RW21 = (NL(P)+ Nda(P)) X PW X LW2"]
[]
["DESCARGA SOBRE ACOMETIDA COMUNICACIONES S3 PARA DAÑO D3 ( LW2 PARA PÉRDIDAS SERVICIO PUBLICO)"]
["RW22",{"$f":"IF('Menu principal'!$G$33=0,0,($B$33+$B$17)*$B$79*$B$130)","v":0},null,null,null,null,"RW22 = (NL(T)+ Nda(T)) X PW X LW2"]
[]
["DESCARGA SOBRE ACOMETIDA OTROS S3 PARA DAÑO D3 ( LW2 PARA PÉRDIDAS SERVICIO PUBLICO)"]
["RW23",{"$f":"IF('Menu principal'!$G$43=0,0,($B$37+$B$21)*$B$79*$B$130)","v":0},null,null,null,null,"RW23 = (NL(O)+ Nda(O)) X PW X LW2"]
[]
["DESCARGA SOBRE ACOMETIDA POTENCIA S3 PARA DAÑO D3 ( LW4 PARA PÉRDIDAS ECONOMICAS)"]
["RW41",{"$f":"($B$29+$B$13)*$B$79*$B$164","v":1.258406255569885E-3},null,null,null,null,"RW41 = (NL(P)+ Nda(P)) X PW X LW4"]
[]
["DESCARGA SOBRE ACOMETIDA COMUNICACIONES S3 PARA DAÑO D3 ( LW4 PARA PÉRDIDAS ECONOMICA)"]
["RW42",{"$f":"IF('Menu principal'!$G$33=0,0,($B$33+$B$17)*$B$79*$B$164)","v":0},null,null,null,null,"RW42 = (NL(T)+ Nda(T)) X PW X LW4"]
[]
["DESCARGA SOBRE ACOMETIDA OTROS S3 PARA DAÑO D3 ( LW4 PARA PÉRDIDAS ECONOMICA)"]
["RW43",{"$f":"IF('Menu principal'!$G$43=0,0,($B$37+$B$21)*$B$79*$B$164)","v":0},null,null,null,null,"RW43 = (NL(O)+ Nda(O)) X PW X LW4"]
[]
["DESCARGA CERCA ACOMETIDA POTENCIA S4 PARA DAÑO D3 ( LZ1 PARA PÉRDIDASVIDAS HUMANAS)"]
["RZ11",{"$f":"IF(($B$41-$B$29)<0,0,($B$41-$B$29)*$B$85*$B$114)","v":2.9393876913398132E-5},null,null,null,null,"RZ11 = (NI(P) - NL(P)) X PZ X LZ1"]
[]
["DESCARGA CERCA ACOMETIDA COMUNICACIONES S4 PARA DAÑO D3 ( LZ1 PARA PÉRDIDASVIDAS HUMANAS)"]
["RZ12",{"$f":"IF('Menu principal'!$G$33=0,0,IF(($B$45-$B$33)<0,0,($B$45-$B$33)*$B$85*$B$114))","v":0},null,null,null,null,"RZ12 = (NI(T) - NL(T)) X PZ X LZ1"]
[]
["DESCARGA CERCA ACOMETIDA OTROS S4 PARA DAÑO D3 ( LZ1 PARA PÉRDIDASVIDAS HUMANAS)"]
["RZ13",{"$f":"IF('Menu principal'!$G$43=0,0,IF(($B$49-$B$37)<0,0,($B$49-$B$37)*$B$85*$B$114))","v":0},null,null,null,null,"RZ13 = (NI(O) - NL(O)) X PZ X LZ1"]
[]
["DESCARGA CERCA ACOMETIDA POTENCIA S4 PARA DAÑO D3 ( LZ2 PARA PÉRDIDAS SERVICIO PUBLICO)"]
["RZ21",{"$f":"IF(($B$41-$B$29)<0,0,($B$41-$B$29)*$B$85*$B$133)","v":2.9393876913398132E-4},null,null,null,null,"RZ21 = (NI(P) - NL(P)) X PZ X LZ2"]
[]
["DESCARGA CERCA ACOMETIDA COMUNICACIONES S4 PARA DAÑO D3 ( LZ2 PARA PÉRDIDAS SERVICIO PUBLICO)"]
["RZ22",{"$f":"IF('Menu principal'!$G$33=0,0,IF(($B$45-$B$33)<0,0,($B$45-$B$33)*$B$85*$B$133))","v":0},null,null,null,null,"RZ22 = (NI(T) - NL(T)) X PZ X LZ2"]
[]
["DESCARGA CERCA ACOMETIDA OTROS S4 PARA DAÑO D3 ( LZ2 PARA PÉRDIDAS SERVICIO PUBLICO)"]
["RZ23",{"$f":"IF('Menu principal'!$G$43=0,0,IF(($B$49-$B$37)<0,0,($B$49-$B$37)*$B$85*$B$133))","v":0},null,null,null,null,"RZ23 = (NI(O) - NL(O)) X PZ X LZ2"]
[]
["DESCARGA CERCA ACOMETIDA POTENCIA S4 PARA DAÑO D3 ( LZ4 PARA PÉRDIDAS ECONOMICA)"]
["RZ41",{"$f":"IF(($B$41-$B$29)<0,0,($B$41-$B$29)*$B$85*$B$167)","v":2.9393876913398132E-4},null,null,null,null,"RZ41 = (NI(P) - NL(P)) X PZ X LZ4"]
[]
["DESCARGA CERCA ACOMETIDA COMUNICACIONES S4 PARA DAÑO D3 ( LZ4 PARA PÉRDIDAS ECONOMICA)"]
["RZ42",{"$f":"IF('Menu principal'!$G$33=0,0,IF(($B$45-$B$33)<0,0,($B$45-$B$33)*$B$85*$B$167))","v":0},null,null,null,null,"RZ42 = (NI(T) - NL(T)) X PZ X LZ4"]
[]
["DESCARGA CERCA ACOMETIDA OTROS S4 PARA DAÑO D3 ( LZ4 PARA PÉRDIDAS ECONOMICA)"]
["RZ43",{"$f":"IF('Menu principal'!$G$43=0,0,IF(($B$49-$B$37)<0,0,($B$49-$B$37)*$B$85*$B$167))","v":0},null,null,null,null,"RZ43 = (NI(O) - NL(O)) X PZ X LZ4"]
[]
["CALCULOS DE LOS RIESGOS"]
["R1CRE",{"$f":"$B$172+$B$178+$B$190+$B$199+$B$208+$B$211+$B$214+$B$226+$B$229+B232+$B$262+$B$265+$B$268+$B$289+$B$292+B295","v":3.5050185314250138E-4},"R1CREXP = RA1 + RB1 + RC1 + RM1 + RU(P) + RU(T)  + RU(O) + RV11 + RV12 + RV13 + RW11 + RW12 + RW13 + RZ11 + RZ12"]
["R1SRE",{"$f":"B172+B178+B208+B211+B214+B226+B229+B232","v":2.9312218248815355E-5},"R1SREXP = RA1 + RB1 + RU(P) + RU(T)  + RU(O) + RV11 + RV12 + RV13"]
["R2",{"$f":"Calculos!$B$181+Calculos!$B$193+Calculos!$B$202+Calculos!$B$235+Calculos!$B$238+B241+Calculos!$B$271+Calculos!$B$274+Calculos!$B$277+Calculos!$B$298+Calculos!$B$301+Calculos!$B$304","v":3.2410661408307805E-3},"R2 = RB2 + RC2 + RM2 + RV21 + RV22 + RW21 + RW22 + RW23 + RZ21 + RZ22 + RZ23"]
["R3",{"$f":"Calculos!$B$184+Calculos!$B$244+Calculos!$B$247+Calculos!$B$250","v":2.9169791893920146E-5},"R3 = RB3 + RV31 + RV32 + RV33"]
["R4CPA",{"$f":"B175+B187+B196+B205+B217+B220+B223+B253+B256+B259+B280+B283+B286+B307+B310+B313","v":3.2120387752917557E-3},"R4CPA = RA4 + RB4 + RC4 X RM4 + RU41 + RU42 + RU43 + RV41+ RV42 + RV43 + RW41 + RW42 + RW43 X RZ41 + RZ42 + RZ43"]
["R4SPA",{"$f":"B187+B196+B205+B253+B256+B259+B280+B283+B286+B307+B310+B313","v":3.2118963489368604E-3},"R4SPA = RB4 + RC4 X RM4 + RV41+ RV42 + RV43 + RW41 + RW42 + RW43 X RZ41 + RZ42 + RZ43"]
[]
["COMPONENTES DEL RIESGOA CONSIDERAR"]
[]
[null,"R1",null,"R2",null,"R3",null,"R4"]
["RA",{"$f":"$B$172","v":1.6585729338221295E-8},null,null,null,null,null,{"$f":"$B$175","v":1.6585729338221295E-8}]
["RB",{"$f":"$B$178","v":1.6585729338221295E-5},null,{"$f":"$B$181","v":1.6585729338221295E-5},null,{"$f":"$B$184","v":1.6585729338221295E-5},null,{"$f":"$B$187","v":0}]
["RC",{"$f":"$B$190","v":1.6585729338221294E-4},null,{"$f":"$B$193","v":1.6585729338221295E-3},null,null,null,{"$f":"$B$196","v":1.6585729338221295E-3}]
["RM",{"$f":"$B$199","v":9.7839041086459733E-8},null,{"$f":"$B$202","v":9.7839041086459741E-7},null,null,null,{"$f":"$B$205","v":9.7839041086459741E-7}]
["RU",{"$f":"B208+B211+B214","v":1.2584062555698852E-7},null,null,null,null,null,{"$f":"$B$217+$B$220+$B$223","v":1.2584062555698852E-7}]
["RV",{"$f":"B226+B229+B232","v":1.258406255569885E-5},null,{"$f":"B235+B238+B241","v":1.258406255569885E-5},null,{"$f":"B244+B247+B250","v":1.258406255569885E-5},null,{"$f":"$B$253+$B$256+$B$259","v":0}]
["RW",{"$f":"B262+B265+B268","v":1.2584062555698851E-4},null,{"$f":"B271+B274+B277","v":1.258406255569885E-3},null,null,null,{"$f":"$B$280+$B$283+$B$286","v":1.258406255569885E-3}]
["RZ",{"$f":"B289+B292+B295","v":2.9393876913398132E-5},null,{"$f":"B298+B301+B304","v":2.9393876913398132E-4},null,null,null,{"$f":"$B$307+$B$310+$B$313","v":2.9393876913398132E-4}]
["TOTAL",{"$f":"SUM(B326:B333)","v":3.5050185314250138E-4},null,{"$f":"SUM(D326:D333)","v":3.2410661408307805E-3},null,{"$f":"SUM(F326:F333)","v":2.9169791893920146E-5},null,{"$f":"SUM(H326:H333)","v":3.2120387752917557E-3}]

{"sheet":"tablas de factores","index":2,"n_rows":151,"n_cols":6,"rows_kept":151,"cut":false,"hidden":false,"merged":[[53,0,53,2],[59,3,59,5],[60,0,60,2],[60,3,60,5],[61,0,61,2],[61,3,61,5],[56,0,56,2],[56,3,56,5],[57,0,57,2],[57,3,57,5],[58,3,58,5],[3,0,3,5],[1,0,1,5],[77,0,77,2],[78,0,78,2],[58,0,58,2],[74,0,74,2],[44,0,44,5],[45,0,45,4],[59,0,59,2],[52,0,52,5],[54,0,54,2],[54,3,54,5],[55,0,55,2],[55,3,55,5],[62,0,62,2],[62,3,62,5],[28,0,28,4],[4,0,4,4],[10,0,10,5],[11,2,11,3],[11,4,11,5],[13,2,13,3],[13,4,13,5],[15,0,15,5],[16,0,16,4],[20,0,20,5],[21,0,21,4],[27,0,27,5],[89,0,89,5],[34,0,34,5],[35,0,35,3],[64,0,64,5],[65,0,65,4],[73,0,73,5],[53,3,53,5],[42,0,42,4],[41,0,41,4],[80,0,80,5],[81,0,82,0],[81,1,82,1],[81,2,82,2],[81,3,81,5],[75,0,75,2],[76,0,76,2],[90,0,90,4],[93,0,93,4],[98,0,98,4],[102,0,102,5],[103,0,103,1],[103,2,103,3],[103,4,103,5],[104,4,104,5],[105,2,105,3],[105,4,105,5],[106,2,106,3],[106,4,106,5],[0,4,0,5],[142,0,142,4],[146,0,146,4],[139,0,139,4],[107,2,107,3],[107,4,107,5],[109,0,109,5],[110,0,110,4],[115,0,115,5],[116,0,116,4],[123,0,123,5],[124,0,124,4],[133,0,133,5],[134,0,134,3],[138,0,138,5],[104,2,104,3]]}
[null,null,null,null,"Diseñado por Ing. Gregor Rojas\nCaracas-Venezuela"]
["TABLAS DE FACTORES"]
[]
["TABLA A.2 Factor de localización Cd"]
["Situación relativa",null,null,null,null,"Cd"]
["Rodeado por objetos más altos o por árboles ",null,null,null,null,0.25]
["Rodeado por objetos o árboles de la misma o menor altura",null,null,null,null,0.5]
["Aislado sin otros objetos en las proximidades",null,null,null,null,1]
["Aislado en la parte superior de una colina o de un montículo",null,null,null,null,2]
[]
["TABLA A.3 Áreas de captación AL y Ai en función de las características del servicio"]
[null,null,"Aérea",null,"Enterrada"]
["Aérea","Al"]
["Enterrada","Ai","1000Lc"]
[]
["TABLA A.4 Factor por transformador"]
["Transformador",null,null,null,null,"Ct"]
["Servicio con un transformador de dos arrollamientos",null,null,null,null,0.2]
["Solamente el servicio",null,null,null,null,1]
[]
["TABLA A.5 Factor ambiental"]
["Ambiente",null,null,null,null,"Ce"]
["Urbano con edificios de altura superior a 20 m",null,null,null,null,0.01]
["Urbano con edificios de altura entre 10 y 20 m",null,null,null,null,0.1]
["Suburbano con edificios de altura inferior a 10 m",null,null,null,null,0.5]
["Rural",null,null,null,null,1]
[]
["TABLA B.1  Valores de la probabilidad PA de que una descarga en la estructura \nproduzca impactos en los seres vivos por voltajes de paso y contacto"]
["Medidas de protección",null,null,null,null,"PA"]
["Sin medidas de protección",null,null,null,null,1]
["Aislamiento eléctrico de los conductores expuestos",null,null,null,null,{"$f":"10^-2","v":0.01}]
["Equipotenciación efectiva del terreno",null,null,null,null,{"$f":"10^-2","v":0.01}]
["Avisos",null,null,null,null,{"$f":"10^-1","v":0.1}]
[]
["TABLA B.2 Valores de PB en función de medidas de protección para reducir daños físicos"]
["Característica de la estructura",null,null,null,"Nivel","PB"]
["Estructura no protegida por un SPCR",null,null,null,null,1]
["Estructura protegida por un SPCR",null,null,null,"IV",0.2]
["Estructura protegida por un SPCR",null,null,null,"III",0.1]
["Estructura protegida por un SPCR",null,null,null,"III",0.05]
["Estructura protegida por un SPCR",null,null,null,"I",0.02]
["Estructura con SPCR nivel I, con armaduras metálicas continuas o armaduras del hormigón actuando como conductores de bajada",null,null,null,null,0.01]
["SPCR completo, techo metálico con armaduras metálicas continuas actuando como conductores de bajada",null,null,null,null,1E-3]
[]
["TABLA B.3 Valores de PSPD en función de nivel de protección para el que se han diseñado los dispositivos DPS"]
["Nivel de protección",null,null,null,null,"PSPD"]
["Sin protección coordinada de dispositivos DPS",null,null,null,null,1]
["Protección interna coordinada con DPS Nivel III o IV ",null,null,null,null,0.03]
["Protección interna  coordinada con DPS Nivel II",null,null,null,null,0.02]
["Protección interna  coordinada con DPS Nivel I",null,null,null,null,0.01]
["Utilización de DPS con mejores características al Nivel I ",null,null,null,null,"0,005 - 0,001"]
[]
["TABLA B.4 Valores de PMS en función de KMS"]
["KMS",null,null,"PMS"]
[">= 0,4",null,null,1]
[0.15,null,null,0.9]
[7.0000000000000007E-2,null,null,0.5]
[3.5000000000000003E-2,null,null,0.1]
[2.1000000000000001E-2,null,null,0.01]
[1.6E-2,null,null,5.0000000000000001E-3]
[1.4999999999999999E-2,null,null,3.0000000000000001E-3]
[1.4E-2,null,null,1E-3]
["<=0,013",null,null,1E-4]
[]
["TABLA B.5 Valor del factor KS3 en función del cableado interno"]
["Nivel de protección",null,null,null,null,"PSPD"]
["Sin apantallar y sin precauciones de cableado para evitar bucles, área del lazo en el orden de 50 m2",null,null,null,null,1]
["Sin apantallar y con precauciones de cableado para evitar grandes bucles, área del lazo en el orden de 10 m2",null,null,null,null,0.2]
["Sin apantallar y con precauciones de cableado para evitar bucles, área del lazo en el orden de 0,5 m2",null,null,null,null,0.02]
["Apantallado con resistencia de la pantalla entre 5<Rs<20  Ω/Km, PAT ambos extremos a barra equipotencial",null,null,null,null,1E-3]
["Apantallado con resistencia de la pantalla entre 1<Rs<5  Ω/Km, PAT ambos extremos a barra equipotencial",null,null,null,null,2.0000000000000001E-4]
["Apantallado con resistencia de la pantalla entre 1<Rs  Ω/Km, PAT ambos extremos a barra equipotencial",null,null,null,null,1E-4]
[]
["TABLA B.6 Valores de PLD en función de la resistencia RS de la pantalla del cable y del voltaje soportado a impulso UW del equipo"]
["UW KV",null,null,"5 < Rs < 20 \nohm/Km","1 < Rs < 5 \nohm/Km","Rs < 1\nohm/Km"]
[1.5,null,null,1,0.8,0.4]
[2.5,null,null,0.95,0.6,0.2]
[4,null,null,0.9,0.3,0.04]
[6,null,null,0.8,0.1,0.02]
[]
["TABLA B.7 Valores de PLI en función de la resistencia RS de la pantalla del cable y de la tensión soportada a impulso UW del equipo"]
["UW KV","Sin pantalla ","Pantalla sin conectar a barra equipotencial del equipo","pantalla conectada a barra equipotencial a la que conecta el equipo"]
[null,null,null,"5 < Rs < 20 \nohm/Km","1 < Rs < 5 \nohm/Km","Rs < 1\nohm/Km"]
[1.5,1,0.5,0.15,0.04,0.02]
[2.5,0.4,0.2,0.06,0.02,8.0000000000000002E-3]
[4,0.2,0.1,0.03,8.0000000000000002E-3,4.0000000000000001E-3]
[6,0.1,0.05,0.02,4.0000000000000001E-3,2E-3]
[]
[]
["TABLA C.1 Valores medios típicos de Lt, Lf y Lo\n(Perdidas vidas Humanas)"]
["Tipo de estructura",null,null,null,null,"Lt"]
["Todo tipo (Personas en interior de edificio)",null,null,null,null,{"$f":"10^-4","v":1E-4}]
["Todo tipo (Personas en exterior de edificio)",null,null,null,null,{"$f":"10^-2","v":0.01}]
["Tipo de estructura",null,null,null,null,"Lf"]
["Hospitales, hoteles, edificios públicos",null,null,null,null,{"$f":"10^-1","v":0.1}]
["Industriales, comerciales, escuelas",null,null,null,null,{"$f":"5*10^-2","v":0.05}]
["Entretenimiento público, iglesias, museos",null,null,null,null,{"$f":"2*10^-2","v":0.02}]
["Otros",null,null,null,null,{"$f":"10^-2","v":0.01}]
["Tipo de estructura",null,null,null,null,"Lo"]
["Con riesgo de explosión",null,null,null,null,{"$f":"10^-1","v":0.1}]
["Hospitales",null,null,null,null,{"$f":"10^-3","v":1E-3}]
[]
["TABLA C.2  Valores factores reductores ra y ru en función del tipo del terreno y del suelo"]
["tipo de superficie",null,"Resistencia de contacto",null,"ra y ru"]
["Agrícola, hormigón",null,"< 1",null,{"$f":"10^-2","v":0.01}]
["Mármol, cerámica.",null," 1 - 10",null,{"$f":"10^-3","v":1E-3}]
["Grava, moqueta, alfombra",null,"10 - 100",null,{"$f":"10^-4","v":1E-4}]
["Asfalto, linóleo, madera",null,"> 100",null,{"$f":"10^-5","v":1.0000000000000001E-5}]
[]
["TABLA C.3 Valores del factor reductor rp en función de medidas tomadas para reducir efectos del fuego"]
["Medida de prevención",null,null,null,null,"rp"]
["Sin medidas",null,null,null,null,1]
["Una de las siguiente medidas: Extintores; rociadores; instalaciones de alarma manual; hidrantes; compartimientos contra fuego; vías de evacuación",null,null,null,null,0.5]
["Una de las siguiente medidas: instalaciones fijas de extinción automáticas; instalaciones automáticas de alarma",null,null,null,null,0.2]
[]
["TABLA C.4 Valores del factor reductor Rf en función del riesgo de incendio en la estructura"]
["Riesgo por fuego",null,null,null,null,"Rf"]
["Ninguno",null,null,null,null,0]
["Bajo (Estructuras que almacenen material combustible ocasionalmente)",null,null,null,null,{"$f":"10^-3","v":1E-3}]
["Normal (Estructuras que almacenen material combustible en forma permanente)",null,null,null,null,{"$f":"10^-2","v":0.01}]
["Alto (Estructura fabricada con material combustible)",null,null,null,null,{"$f":"10^-1","v":0.1}]
["Severo (Estructura con riesgo de explosión)",null,null,null,null,1]
[]
["TABLA C.5 Valores del factor amplificador hz de daños físicos por presencia de un daño especial"]
["´Tipos de daños especiales",null,null,null,null,"hz"]
["Sin daño especial",null,null,null,null,1]
["Nivel bajo de pánico (edificación limitada a 2 pisos y número de personas inferior a 100)",null,null,null,null,2]
["Nivel medio de pánico (edificaciones para eventos culturales o deportivos, de 100 a 1000 personas)",null,null,null,null,5]
["Dificultad de evacuación (edificación con personas invalidas, hospitales)",null,null,null,null,5]
["Nivel alto de pánico (edificaciones para eventos culturales o deportivos, con mas de 1000 personas)",null,null,null,null,10]
["Riesgo para el medio ambiente o los alrededores",null,null,null,null,20]
["Contaminación de los alrededores o del medio ambiente",null,null,null,null,50]
[]
["TABLA C.6 Valores medios típicos de Lf y Lo\n(Perdidas inaceptables de servicio público)"]
["Tipo de servicio",null,null,null,"Lf","Lo"]
["Gas, agua",null,null,null,{"$f":"10^-1","v":0.1},{"$f":"10^-2","v":0.01}]
["TV, Telecomunicaciones, red de potencia",null,null,null,{"$f":"10^-2","v":0.01},{"$f":"10^-3","v":1E-3}]
[]
["TABLA C.7 Valores medios típicos de Lt, Lf y Lo\n(Perdidas económicas)"]
["Tipo de estructura",null,null,null,null,"Lt"]
["Todo tipo (Interior de la edificación)",null,null,null,null,{"$f":"10^-4","v":1E-4}]
["Todo tipo (Exterior de la edificación)",null,null,null,null,{"$f":"10^-2","v":0.01}]
["Tipo de estructura",null,null,null,null,"Lf"]
["Hospitales, industrial, museo, agricultura",null,null,null,null,0.5]
["Hotel, comerciales, escuela, oficina, iglesia, entretenimiento público",null,null,null,null,0.2]
["Otros",null,null,null,null,0.1]
["Tipo de estructura",null,null,null,null,"Lo"]
["Con riesgo de explosión",null,null,null,null,{"$f":"10^-1","v":0.1}]
["Hospitales, industrial, oficina, hoteles, edificios comercial",null,null,null,null,{"$f":"10^-2","v":0.01}]
["Museo, agricultura, escuelas, iglesias, entretenimiento público",null,null,null,null,{"$f":"10^-3","v":1E-3}]
["Otros",null,null,null,null,{"$f":"10^-4","v":1E-4}]

{"sheet":"imagenes","index":3,"n_rows":94,"n_cols":26,"rows_kept":94,"cut":false,"hidden":false,"merged":[[31,2,31,4],[31,10,31,12],[3,8,3,20],[4,7,11,7],[8,18,8,19],[9,17,10,17],[18,6,18,7],[27,1,27,25],[28,1,28,25],[30,2,30,4],[30,10,30,12],[30,21,30,23],[52,1,52,25],[53,1,53,25],[55,2,55,4],[55,10,55,12],[55,21,55,23],[35,5,35,7],[35,14,35,15],[35,21,35,24],[42,13,42,16],[43,1,43,11],[43,20,43,25],[80,10,80,12],[80,21,80,23],[75,22,75,27],[56,2,56,4],[56,10,56,12],[92,13,92,16],[93,1,93,11],[93,20,93,25],[81,2,81,4],[81,10,81,12],[0,22,0,27],[25,22,25,27],[50,22,50,27],[1,1,1,25],[85,5,85,7],[85,14,85,15],[85,21,85,24],[60,5,60,7],[60,14,60,15],[60,21,60,24],[67,13,67,16],[68,1,68,11],[68,20,68,25],[77,1,77,25],[78,1,78,25],[80,2,80,4]]}
[null,null,null,null,null,null,null,null,null,null,null,null,null,null,null,null,null,null,null,null,null,null,"Diseñado por Ing. Gregor Rojas\nCaracas-Venezuela"]
[null,"DIMENSIONES DE LA ESTRUCTURA EN FORMA COMPLEJA"]
[]
[null,null,null,null,null,null,null,null,{"$f":"'Menu principal'!G4&\" m (L)\"","v":"40 m (L)"}]
[null,null,null,null,null,null,null,{"$f":"'Menu principal'!G5&\" m (W)\"","v":"50 m (W)"}]
[]
[]
[]
[null,null,null,null,null,null,null,null,null,null,null,null,null,null,null,null,null,null,{"$f":"8&\" m\"","v":"8 m"}]
[null,null,null,null,null,null,null,null,null,null,null,null,null,null,null,null,null,{"$f":"8&\" m\"","v":"8 m"}]
[]
[]
[null,null,null,null,null,null,null,null,null,null,null,null,null,null,"VISTA DE PLANTA"]
[]
[]
[]
[]
[null,null,null,null,null,null,null,null,null,null,null,null,null,null,null,null,null,null,null,null,null,null,{"$f":"'Menu principal'!G8&\" m (Hp)\"","v":"5 m (Hp)"}]
[null,null,null,null,null,null,{"$f":"'Menu principal'!G6&\" m (W)\"","v":"25 m (W)"}]
[]
[]
[null,null,null,null,null,null,null,null,null,null,null,null,null,null,"VISTA LATERAL"]
[]
[]
[]
[null,null,null,null,null,null,null,null,null,null,null,null,null,null,null,null,null,null,null,null,null,null,"Diseñado por Ing. Gregor Rojas\nCaracas-Venezuela"]
[]
[null,"DIMENSIONES DE LA ESTRUCTURA A PROTEGER Y DE LA ADYACENTE"]
[null,"POTENCIA"]
[]
[null,"Ad =",{"$f":"Calculos!$B$8","v":33171.458676442591},null,null,null,null,null,null,"Ai(P) =",{"$f":"Calculos!B40","v":0},null,null,null,null,null,null,null,null,null,"Ad(P)=",{"$f":"Calculos!B12","v":7761.7251235193307}]
[null,"Am =",{"$f":"Calculos!$B$24","v":228849.54084936206},null,null,null,null,null,null,"Al(P) =",{"$f":"Calculos!B28","v":-1469.6938456699068}]
[]
[]
[]
[null,null,null,null,null,{"$f":"'Menu principal'!G4&\" m (Lb)\"","v":"40 m (Lb)"},null,null,null,null,null,null,null,null,"2 Di",null,null,null,null,null,null,{"$f":"'Menu principal'!$G$18&\" m (La)\"","v":"10 m (La)"}]
[]
[null,null,{"$f":"'Menu principal'!G5&\" m (W)\"","v":"50 m (W)"},null,null,null,null,null,null,null,null,null,null,null,null,null,null,null,null,null,null,null,null,null,null,{"$f":"'Menu principal'!$G$19&\" m (Wa)\"","v":"5 m (Wa)"}]
[]
[]
[]
[]
[null,null,null,null,null,null,null,null,null,null,null,null,null,{"$f":"'Menu principal'!$G$36&\" m (L)\"","v":"0 m (L)"}]
[null,"Estructura a proteger",null,null,null,null,null,null,null,null,null,null,null,null,null,null,null,null,null,null,"Estructura adyacente"]
[]
[]
[]
[]
[]
[]
[null,null,null,null,null,null,null,null,null,null,null,null,null,null,null,null,null,null,null,null,null,null,"Diseñado por Ing. Gregor Rojas\nCaracas-Venezuela"]
[]
[null,"DIMENSIONES DE LA ESTRUCTURA A PROTEGER Y DE LA ADYACENTE"]
[null,"TELECOMUNICACIONES"]
[]
[null,"Ad =",{"$f":"Calculos!$B$8","v":33171.458676442591},null,null,null,null,null,null,"Ai(T) =",{"$f":"Calculos!B44","v":0},null,null,null,null,null,null,null,null,null,"Ad(T)=",{"$f":"Calculos!B16","v":0}]
[null,"Am =",{"$f":"Calculos!$B$24","v":228849.54084936206},null,null,null,null,null,null,"Al(T) =",{"$f":"Calculos!B32","v":0}]
[]
[]
[]
[null,null,null,null,null,{"$f":"'Menu principal'!G4&\" m (Lb)\"","v":"40 m (Lb)"},null,null,null,null,null,null,null,null,"2 Di",null,null,null,null,null,null,{"$f":"'Menu principal'!$G$29&\" m (La)\"","v":"0 m (La)"}]
[]
[null,null,{"$f":"'Menu principal'!G5&\" m (W)\"","v":"50 m (W)"},null,null,null,null,null,null,null,null,null,null,null,null,null,null,null,null,null,null,null,null,null,null,{"$f":"'Menu principal'!$G$30&\" m (Wa)\"","v":"0 m (Wa)"}]
[]
[]
[]
[]
[null,null,null,null,null,null,null,null,null,null,null,null,null,{"$f":"'Menu principal'!$G$46&\" m (L)\"","v":"0 m (L)"}]
[null,"Estructura a proteger",null,null,null,null,null,null,null,null,null,null,null,null,null,null,null,null,null,null,"Estructura adyacente"]
[]
[]
[]
[]
[]
[]
[null,null,null,null,null,null,null,null,null,null,null,null,null,null,null,null,null,null,null,null,null,null,"Diseñado por Ing. Gregor Rojas\nCaracas-Venezuela"]
[]
[null,"DIMENSIONES DE LA ESTRUCTURA A PROTEGER Y DE LA ADYACENTE"]
[null,"OTROS SERVICIOS"]
[]
[null,"Ad =",{"$f":"Calculos!$B$8","v":33171.458676442591},null,null,null,null,null,null,"Ai(O) =",{"$f":"Calculos!B48","v":0},null,null,null,null,null,null,null,null,null,"Ad(O)=",{"$f":"Calculos!B20","v":0}]
[null,"Am =",{"$f":"Calculos!$B$24","v":228849.54084936206},null,null,null,null,null,null,"AlO) =",{"$f":"Calculos!B36","v":0}]
[]
[]
[]
[null,null,null,null,null,{"$f":"'Menu principal'!$G$4&\" m (Lb)\"","v":"40 m (Lb)"},null,null,null,null,null,null,null,null,"2 Di",null,null,null,null,null,null,{"$f":"'Menu principal'!$G$39&\" m (La)\"","v":"0 m (La)"}]
[]
[null,null,{"$f":"'Menu principal'!$G$5&\" m (W)\"","v":"50 m (W)"},null,null,null,null,null,null,null,null,null,null,null,null,null,null,null,null,null,null,null,null,null,null,{"$f":"'Menu principal'!$G$40&\" m (Wa)\"","v":"0 m (Wa)"}]
[]
[]
[]
[]
[null,null,null,null,null,null,null,null,null,null,null,null,null,{"$f":"'Menu principal'!$G$25&\" m (L)\"","v":"0 m (L)"}]
[null,"Estructura a proteger",null,null,null,null,null,null,null,null,null,null,null,null,null,null,null,null,null,null,"Estructura adyacente"]

{"sheet":"DDT","index":4,"n_rows":29,"n_cols":10,"rows_kept":29,"cut":false,"hidden":false,"merged":[[2,1,2,4],[2,6,2,9],[0,8,0,9]]}
[null,null,null,null,null,null,null,null,"Diseñado por Ing. Gregor Rojas\nCaracas-Venezuela"]
[]
[null,"MAPA CENAURICO DE VENEZUELA",null,null,null,null,"TABLA DE DDT EN CIUDADES CAPITALES"]
[]
[null,null,null,null,null,null,"Ciudades Capitales","Latitud","Longitud","Densidad Promedio (DDT) (Número de Descargas/km2/Año)"]
[null,null,null,null,null,null,"Barcelona","10°04'0″ N","- 64°43'0″ O",2]
[null,null,null,null,null,null,"Barinas","8°38′ N","- 70°12′ O",2]
[null,null,null,null,null,null,"Barquisimeto","10º04' N","- 69º18' O",4]
[null,null,null,null,null,null,"Caracas","10°30'0″ N","- 66°55'0″ O",1]
[null,null,null,null,null,null,"Ciudad Bolívar","8°05'15\" N","- 63°31'39\" O",2]
[null,null,null,null,null,null,"Coro","11º24' N","- 69º41' O",4]
[null,null,null,null,null,null,"Cumaná","10°27'23″ N","- 64°10′3″ O",1]
[null,null,null,null,null,null,"Guanare","9º02’37” N","- 68º44’56” O",6]
[null,null,null,null,null,null,"La Asunción","11°01′39″ N","- 63°51′46″ O",0.5]
[null,null,null,null,null,null,"La Guaira","10º36' N","- 66º55' O",1]
[null,null,null,null,null,null,"Los Teques","10º20'34\" N","- 67º02'44\" O",1.5]
[null,null,null,null,null,null,"Maracaibo","10°37'0″ N","- 71º37'0\" O",20]
[null,null,null,null,null,null,"Maracay","10º14'49\" N","- 67º35'45\" O",2]
[null,null,null,null,null,null,"Maturín","9º42'49\" N","- 63º11'15\" O",2]
[null,null,null,null,null,null,"Mérida","8°34'0″ N","- 71º7'0\" O",2]
[null,null,null,null,null,null,"Puerto Ayacucho","5º35'40\" N","- 67º41'49\" O",3]
[null,null,null,null,null,null,"San Carlos","9°39'30\" N","- 68°35'24\" O",4]
[null,null,null,null,null,null,"San Cristobal","7º46' N","- 72º14' O",1]
[null,null,null,null,null,null,"San Felipe","10º20'25\" N","- 68º44'09\" O",4]
[null,null,null,null,null,null,"San Fernando de Apure","7°54′0″ N","- 67°28′0″ O",8]
[null,null,null,null,null,null,"San Juan de los Morros","09º54'39\" N","- 67º21'29\" O",2]
[null,null,null,null,null,null,"Trujillo","09º22'0\" N","- 70º25'59\" O",2]
[null,null,null,null,null,null,"Tucupita","09°03'33\" N","- 62°04'05\" O",1]
[null,null,null,null,null,null,"Valencia","10°10′0″ N","- 68°0′0″ O",3]

{"sheet":"Instrucciones","index":5,"n_rows":0,"n_cols":0,"rows_kept":0,"cut":false,"hidden":false,"merged":[]}